bitfinex/quotes_BTCUSD_20210402
["timestamp","ask_amount","ask_price","bid_price","bid_amount"]
[1617340095271,0.34516524,59494.0,59470.0,0.16053843]
[1617340095468,0.165,59489.0,59483.0,0.00022]
[1617340095668,0.387107,59485.0,59483.0,0.00022]
[1617340095867,1.47004068,59484.0,59470.0,0.00042]
[1617340096069,1.47004068,59484.0,59470.0,0.00022]
[1617340096070,0.15643556,59475.0,59470.0,0.00022]
[1617340096287,0.387107,59471.0,59470.0,0.00022]
[1617340096486,0.702107,59471.0,59470.0,0.00022]
[1617340096685,3.1570577,59471.0,59470.0,0.00022]
[1617340096890,3.50222294,59471.0,59470.0,0.00022]
[1617340097085,3.65696007,59471.0,59470.0,0.00022]
[1617340098283,3.65696007,59471.0,59469.0,0.00064]
[1617340098483,3.65696007,59471.0,59438.0,0.00064]
[1617340098692,3.65696007,59471.0,59434.0,0.03467501]
[1617340098933,0.00303724,59467.0,59458.0,0.0042]
[1617340099122,0.03911622,59456.0,59454.0,0.50867]
[1617340099324,0.035,59457.0,59455.0,0.205115]
[1617340099521,0.767107,59456.0,59455.0,0.709785]
[1617340099718,2.435,59456.0,59455.0,0.709785]
[1617340099913,2.822107,59456.0,59455.0,0.639785]
[1617340100318,2.435,59456.0,59455.0,0.634785]
[1617340100982,2.822107,59456.0,59455.0,0.664785]
[1617340101188,2.822107,59456.0,59455.0,0.634785]
[1617340102181,2.822107,59456.0,59455.0,0.234785]
[1617340102380,2.822107,59456.0,59455.0,0.224785]
[1617340102787,3.032107,59456.0,59455.0,0.219785]
[1617340103003,4.563147,59456.0,59455.0,0.209785]
[1617340103195,6.39764536,59456.0,59455.0,0.209785]
[1617340103393,0.002,59447.0,59436.0,0.9024]
[1617340103593,0.33320248,59446.0,59436.0,0.82263381]
[1617340103785,0.33016524,59444.0,59436.0,0.82263381]
[1617340103983,2.4,59442.0,59436.0,0.82263381]
[1617340104390,0.387107,59438.0,59436.0,1.32737381]
[1617340104588,0.33016524,59437.0,59436.0,1.32737381]
[1617340104787,0.32516524,59440.0,59436.0,1.31737381]
[1617340105191,0.32516524,59440.0,59437.0,0.285]
[1617340105387,0.167,59441.0,59437.0,0.285]
[1617340105593,0.167,59441.0,59437.0,0.78974]
[1617340105791,0.00303724,59461.0,59439.0,3.13]
[1617340105999,0.00303724,59461.0,59449.0,0.002]
[1617340106199,0.387107,59482.0,59451.0,0.39167]
[1617340106394,0.387107,59482.0,59464.0,0.002]
[1617340106600,2.1423,59466.0,59465.0,0.00303724]
[1617340106795,2.1423,59466.0,59465.0,0.21724764]
[1617340106992,2.1423,59466.0,59465.0,0.89641]
[1617340107195,2.529407,59466.0,59465.0,0.89141]
[1617340107384,2.529407,59466.0,59465.0,3.43141]
[1617340107586,2.1423,59466.0,59465.0,3.43141]
[1617340107789,2.1423,59466.0,59465.0,3.46141]
[1617340108190,0.419466,59489.0,59479.0,0.03]
[1617340108191,0.0046,59488.0,59479.0,0.03]
[1617340108390,1.61953,59477.0,59472.0,0.002]
[1617340108589,1.61953,59477.0,59476.0,0.71052]
[1617340108590,1.976637,59477.0,59476.0,0.71052]
[1617340108985,1.976637,59477.0,59476.0,1.1981]
[1617340109604,1.976637,59477.0,59476.0,1.1931]
[1617340109800,1.976637,59477.0,59476.0,1.2231]
[1617340110602,1.976637,59477.0,59476.0,1.1931]
[1617340110801,1.976637,59477.0,59476.0,1.11783]
[1617340111010,2.276637,59477.0,59476.0,1.11783]
[1617340111212,2.576637,59477.0,59476.0,0.50474]
[1617340111602,2.326637,59477.0,59476.0,0.50474]
[1617340111805,2.326637,59477.0,59476.0,0.49597347]
[1617340112043,2.576637,59477.0,59476.0,0.49597347]
[1617340112636,2.326637,59477.0,59476.0,0.49597347]
[1617340112837,2.576637,59477.0,59476.0,0.49597347]
[1617340113640,2.326637,59477.0,59476.0,0.49597347]
[1617340114660,2.026637,59477.0,59476.0,0.49597347]
[1617340114858,2.026637,59477.0,59476.0,0.49097347]
[1617340114859,2.276637,59477.0,59476.0,0.49097347]
[1617340115360,2.616637,59477.0,59476.0,0.49097347]
[1617340115560,2.366637,59477.0,59476.0,0.49097347]
[1617340116833,2.026637,59477.0,59476.0,0.49097347]
[1617340117232,2.276637,59477.0,59476.0,0.49097347]
[1617340118433,3.04919829,59477.0,59476.0,0.49097347]
[1617340118829,2.851637,59477.0,59476.0,0.49097347]
[1617340119029,3.851637,59477.0,59476.0,0.49097347]
[1617340119433,4.30170563,59477.0,59476.0,0.49097347]
[1617340120028,3.30170563,59477.0,59476.0,0.49097347]
[1617340120432,3.104157,59477.0,59476.0,0.49097347]
[1617340120840,2.804157,59477.0,59476.0,0.49097347]
[1617340121048,1.976637,59477.0,59476.0,0.82431347]
[1617340121241,1.976637,59477.0,59476.0,4.02177773]
[1617340121438,1.58953,59477.0,59476.0,4.34098347]
[1617340121635,1.58953,59477.0,59476.0,4.99098347]
[1617340121840,1.7457756,59477.0,59476.0,1.77431347]
[1617340122039,1.58953,59477.0,59476.0,1.24555992]
[1617340122238,1.58953,59477.0,59476.0,0.94555992]
[1617340122239,2.11054778,59477.0,59476.0,0.94555992]
[1617340122631,2.45054778,59477.0,59476.0,0.94555992]
[1617340123035,2.45054778,59477.0,59476.0,0.85431347]
[1617340123440,2.50054778,59477.0,59476.0,0.85431347]
[1617340123640,2.11054778,59477.0,59476.0,0.85431347]
[1617340123840,2.11054778,59477.0,59476.0,0.82431347]
[1617340124038,2.10554778,59477.0,59476.0,0.82431347]
[1617340124238,2.48054778,59477.0,59476.0,0.82431347]
[1617340124845,2.53054778,59477.0,59476.0,0.82431347]
[1617340125044,2.48054778,59477.0,59476.0,0.82431347]
[1617340127259,2.43054778,59477.0,59476.0,0.82431347]
[1617340129885,2.05554778,59477.0,59476.0,0.82431347]
[1617340130984,2.05554778,59477.0,59476.0,0.85431347]
[1617340132788,1.66844078,59477.0,59476.0,0.85431347]
[1617340133385,1.53453,59477.0,59476.0,0.85431347]
[1617340133590,1.53453,59477.0,59476.0,1.05431347]
[1617340134189,0.15609501,59488.0,59476.0,1.05431347]
[1617340134391,0.15609501,59488.0,59483.0,0.03]
[1617340134601,0.15609501,59488.0,59484.0,0.54578145]
[1617340134799,0.15624508,59493.0,59484.0,0.54578145]
[1617340134998,0.15634377,59496.0,59484.0,0.15867445]
[1617340135197,0.1738899,59497.0,59485.0,3.37136555]
[1617340135401,0.01753137,59497.0,59486.0,0.57803724]
[1617340135597,0.01753137,59497.0,59488.0,0.00303724]
[1617340135794,0.01753137,59497.0,59488.0,0.73285724]
[1617340135996,0.01253137,59497.0,59489.0,1.49764347]
[1617340136193,0.01253137,59497.0,59491.0,0.38667]
[1617340136393,0.01253137,59497.0,59491.0,0.87764347]
[1617340136592,0.01253137,59497.0,59492.0,0.77167]
[1617340136795,0.01253137,59497.0,59492.0,1.26264347]
[1617340138394,0.01253137,59497.0,59493.0,0.48339999]
[1617340138592,0.01253137,59497.0,59493.0,1.36104346]
[1617340138793,0.01253137,59497.0,59493.0,1.20264347]
[1617340139001,0.01253137,59497.0,59493.0,0.81597347]
[1617340139196,0.01253137,59497.0,59494.0,0.275]
[1617340139401,0.01253137,59497.0,59496.0,3.166377]
[1617340139611,0.15668909,59507.0,59497.0,3.17]
[1617340139817,0.22513385,59526.0,59502.0,0.387054]
[1617340140016,0.16,59530.0,59508.0,0.00303724]
[1617340140215,0.168,59526.0,59516.0,0.252213]
[1617340140414,0.15141347,59539.0,59525.0,0.03]
[1617340140614,0.022,59539.0,59528.0,0.002]
[1617340140807,0.02,59539.0,59529.0,0.56014424]
[1617340141026,0.02,59539.0,59531.0,0.422754]
[1617340141228,0.02,59539.0,59534.0,0.7844641]
[1617340141427,0.02,59539.0,59538.0,3.552747]
[1617340141621,0.02,59539.0,59538.0,3.68705047]
[1617340141816,0.02,59539.0,59538.0,4.07372047]
[1617340142226,0.0195,59539.0,59538.0,4.07372047]
[1617340142419,0.0195,59539.0,59538.0,4.69372047]
[1617340143640,0.0195,59539.0,59538.0,4.94581847]
[1617340144040,0.0195,59539.0,59538.0,5.18718402]
[1617340144244,0.05257837,59550.0,59539.0,3.51667]
[1617340144447,0.05257837,59550.0,59546.0,0.03]
[1617340144648,0.05257837,59550.0,59547.0,0.10937999]
[1617340144844,0.05257837,59550.0,59549.0,3.51697]
[1617340145042,0.05257837,59550.0,59549.0,3.92333555]
[1617340145245,0.166,59575.0,59550.0,3.13]
[1617340145448,0.387107,59574.0,59563.0,0.03]
[1617340145647,1.387107,59574.0,59563.0,0.91103347]
[1617340146122,0.387107,59570.0,59563.0,0.91103347]
[1617340146332,0.387107,59569.0,59563.0,0.91103347]
[1617340146517,0.387336,59565.0,59563.0,0.91103347]
[1617340146717,0.05,59573.0,59563.0,0.91103347]
[1617340146919,0.05,59574.0,59564.0,0.17]
[1617340147125,0.216,59575.0,59564.0,0.38776744]
[1617340147320,0.216,59575.0,59564.0,1.26541091]
[1617340147522,0.05,59575.0,59565.0,0.76401071]
[1617340147718,0.16,59584.0,59566.0,0.80097347]
[1617340147923,1.0,59580.0,59567.0,0.002]
[1617340148122,1.0,59580.0,59573.0,0.03]
[1617340148321,0.387336,59576.0,59573.0,0.52097347]
[1617340148525,1.004,59581.0,59573.0,0.52097347]
[1617340148719,0.387336,59577.0,59573.0,0.52097347]
[1617340148924,0.387336,59574.0,59573.0,0.52097347]
[1617340149122,0.16,59584.0,59573.0,0.52097347]
[1617340149320,0.387336,59580.0,59573.0,0.52097347]
[1617340149520,0.387336,59576.0,59573.0,0.52097347]
[1617340149722,0.16,59584.0,59573.0,0.52097347]
[1617340149925,0.387336,59579.0,59573.0,0.52097347]
[1617340150125,0.43741845,59582.0,59573.0,0.52097347]
[1617340150326,0.387336,59582.0,59573.0,0.52097347]
[1617340150526,0.0044,59583.0,59573.0,0.52097347]
[1617340150923,0.15896835,59585.0,59573.0,0.52097347]
[1617340151327,0.15896835,59585.0,59577.0,0.03]
[1617340151527,0.15896835,59585.0,59578.0,0.21776744]
[1617340151724,0.01752002,59585.0,59578.0,1.11764347]
[1617340151929,0.01449793,59589.0,59580.0,3.13]
[1617340152126,0.01449793,59589.0,59580.0,3.51667]
[1617340152325,0.01449793,59589.0,59582.0,0.03]
[1617340152525,0.01449793,59589.0,59582.0,0.52097347]
[1617340154240,0.01449793,59589.0,59583.0,0.155]
[1617340154442,0.01449793,59589.0,59586.0,0.03]
[1617340154643,0.01449793,59589.0,59586.0,0.49097347]
[1617340154842,0.346488,59599.0,59586.0,0.49097347]
[1617340155043,0.387336,59597.0,59586.0,0.49097347]
[1617340155246,0.387336,59595.0,59586.0,0.49097347]
[1617340155443,0.995,59594.0,59586.0,0.49097347]
[1617340155654,2.271,59587.0,59586.0,0.49097347]
[1617340155851,2.497336,59587.0,59586.0,0.49097347]
[1617340156044,0.387336,59587.0,59586.0,0.49097347]
[1617340156866,0.382336,59587.0,59586.0,0.49097347]
[1617340157463,0.05,59588.0,59586.0,0.49097347]
[1617340157862,0.0042,59594.0,59586.0,0.49097347]
[1617340158072,0.387304,59589.0,59586.0,0.49097347]
[1617340158281,3.090304,59587.0,59586.0,0.49097347]
[1617340158474,4.432554,59587.0,59586.0,0.49097347]
[1617340159493,4.45007385,59587.0,59586.0,0.49097347]
[1617340159695,5.45212885,59587.0,59586.0,0.49097347]
[1617340160489,6.00412885,59587.0,59586.0,0.49097347]
[1617340161139,6.00412885,59587.0,59586.0,0.48597347]
[1617340161738,6.30412885,59587.0,59586.0,0.48597347]
[1617340161974,5.83912885,59587.0,59586.0,0.48597347]
[1617340162560,5.99912885,59587.0,59586.0,0.48597347]
[1617340163565,5.83912885,59587.0,59586.0,0.48597347]
[1617340163963,5.99912885,59587.0,59586.0,0.48597347]
[1617340164167,6.02882885,59587.0,59586.0,0.46597347]
[1617340164363,5.85382885,59587.0,59586.0,0.46597347]
[1617340165378,6.01382885,59587.0,59586.0,0.46597347]
[1617340166181,6.11382885,59587.0,59586.0,0.46597347]
[1617340167809,6.626073,59587.0,59586.0,0.46597347]
[1617340168015,0.164,59568.0,59555.0,0.9276]
[1617340168219,0.004,59567.0,59555.0,0.9276]
[1617340168417,0.387304,59566.0,59555.0,0.9276]
[1617340168614,0.19,59565.0,59555.0,0.9276]
[1617340168814,0.387304,59564.0,59555.0,0.9276]
[1617340169012,0.387304,59564.0,59555.0,1.43134]
[1617340169208,0.437304,59564.0,59555.0,1.43134]
[1617340169413,0.155,59563.0,59555.0,1.43134]
[1617340169612,0.28,59562.0,59555.0,1.43134]
[1617340169839,0.165,59561.0,59555.0,0.50374]
[1617340170035,0.387304,59560.0,59555.0,0.50374]
[1617340170839,2.922304,59556.0,59555.0,0.50374]
[1617340171036,3.848184,59556.0,59555.0,0.50374]
[1617340171234,4.308184,59556.0,59555.0,0.50374]
[1617340171437,4.474614,59556.0,59555.0,0.50374]
[1617340173052,2.094614,59556.0,59555.0,0.50374]
[1617340173660,1.939614,59556.0,59555.0,0.50374]
[1617340173854,1.404614,59556.0,59555.0,0.50374]
[1617340174055,1.154614,59556.0,59555.0,0.50374]
[1617340174260,1.406778,59556.0,59555.0,0.50374]
[1617340174457,1.563778,59556.0,59555.0,0.50374]
[1617340174667,4.978778,59556.0,59555.0,0.50374]
[1617340174863,6.413778,59556.0,59555.0,0.48994979]
[1617340175108,6.513778,59556.0,59555.0,0.48994979]
[1617340175310,6.273778,59556.0,59555.0,0.48994979]
[1617340179623,4.183778,59556.0,59555.0,9.79e-06]
[1617340180229,4.38000437,59556.0,59555.0,9.79e-06]
[1617340180448,6.90348958,59556.0,59555.0,9.79e-06]
[1617340180645,6.90348958,59556.0,59536.0,0.0044]
[1617340180646,0.995,59550.0,59536.0,0.0044]
[1617340180844,2.9492486,59537.0,59536.0,0.0044]
[1617340181037,4.72853696,59537.0,59536.0,0.0044]
[1617340181238,5.2537022,59537.0,59536.0,0.0044]
[1617340181441,5.30220384,59537.0,59536.0,0.00088114]
[1617340181636,6.37220384,59537.0,59536.0,0.00088114]
[1617340182138,5.37720384,59537.0,59536.0,0.00088114]
[1617340182344,5.12055524,59537.0,59536.0,0.00088114]
[1617340182537,5.16055524,59537.0,59536.0,0.00088114]
[1617340182736,5.12055524,59537.0,59536.0,0.00088114]
[1617340183758,5.29196871,59537.0,59536.0,0.00088114]
[1617340184363,5.32146707,59537.0,59536.0,0.00088114]
[1617340184563,4.95196871,59537.0,59536.0,0.00088114]
[1617340184762,5.21479565,59537.0,59536.0,0.00088114]
[1617340185986,5.51479565,59537.0,59536.0,0.00088114]
[1617340187185,5.58429401,59537.0,59536.0,0.00088114]
[1617340187385,5.51479565,59537.0,59536.0,0.00088114]
[1617340188402,5.55479565,59537.0,59536.0,0.00088114]
[1617340189202,5.62429401,59537.0,59536.0,0.00088114]
[1617340189404,6.54979565,59537.0,59536.0,0.00088114]
[1617340189607,5.55479565,59537.0,59526.0,0.0002]
[1617340189808,0.162,59530.0,59526.0,0.0002]
[1617340190007,2.287304,59527.0,59526.0,0.0002]
[1617340190208,2.997304,59527.0,59526.0,0.0002]
[1617340190405,3.742304,59527.0,59526.0,0.0002]
[1617340190603,3.86180236,59527.0,59526.0,0.0002]
[1617340191332,3.95680236,59527.0,59526.0,0.0002]
[1617340192131,4.11380236,59527.0,59526.0,0.0002]
[1617340192740,5.10880236,59527.0,59526.0,0.0002]
[1617340193335,5.14880236,59527.0,59526.0,0.0002]
[1617340193563,1.455,59526.0,59512.0,0.9438]
[1617340193762,0.165,59518.0,59512.0,0.9438]
[1617340193967,0.165,59518.0,59512.0,0.0004]
[1617340193968,2.287304,59514.0,59512.0,0.0004]
[1617340194158,2.287304,59514.0,59489.0,0.00303724]
[1617340194159,2.287304,59514.0,59511.0,0.0167838]
[1617340194364,2.097304,59512.0,59511.0,0.0167838]
[1617340194564,2.16180236,59512.0,59511.0,0.0167838]
[1617340194757,2.397304,59512.0,59511.0,0.0167838]
[1617340194961,2.397304,59512.0,59508.0,0.0002]
[1617340194962,2.724304,59512.0,59508.0,0.0002]
[1617340195161,0.51516524,59511.0,59495.0,0.002]
[1617340195367,0.256362,59504.0,59502.0,0.0002]
[1617340195560,0.1996,59500.0,59495.0,0.50428]
[1617340195760,0.2496,59500.0,59489.0,1.0249838]
[1617340195959,0.917304,59499.0,59489.0,1.5292738]
[1617340196392,0.2,59494.0,59492.0,0.03]
[1617340196591,0.2,59494.0,59492.0,0.53429]
[1617340196790,0.1998,59494.0,59492.0,0.53429]
[1617340197000,0.2496,59494.0,59492.0,0.50429]
[1617340197199,1.75,59493.0,59492.0,0.50429]
[1617340197601,2.432304,59493.0,59492.0,0.50429]
[1617340197797,0.682304,59493.0,59492.0,0.50429]
[1617340197997,0.387304,59493.0,59492.0,0.50429]
[1617340198201,0.25241,59493.0,59492.0,0.50429]
[1617340198397,0.25221,59493.0,59492.0,0.50429]
[1617340199206,0.2494,59494.0,59492.0,0.891594]
[1617340199406,0.2494,59494.0,59493.0,0.046182]
[1617340199606,0.2492,59494.0,59493.0,0.046182]
[1617340199806,0.249,59494.0,59493.0,0.046182]
[1617340200004,0.249,59494.0,59493.0,0.076182]
[1617340200204,0.1998,59494.0,59493.0,0.03]
[1617340200406,0.1998,59494.0,59492.0,0.53429]
[1617340201004,0.1996,59494.0,59492.0,0.53429]
[1617340201443,0.1996,59494.0,59493.0,0.03]
[1617340201636,0.1996,59494.0,59493.0,0.921594]
[1617340202233,0.1994,59494.0,59493.0,0.921594]
[1617340202435,0.1992,59494.0,59493.0,1.331594]
[1617340203036,0.2492,59494.0,59493.0,1.331594]
[1617340203635,0.249,59494.0,59493.0,1.331594]
[1617340204259,0.2488,59494.0,59493.0,1.331594]
[1617340204460,0.2486,59494.0,59493.0,1.331594]
[1617340204865,0.2486,59494.0,59493.0,0.50429]
[1617340205264,0.2484,59494.0,59493.0,0.50429]
[1617340205657,0.2482,59494.0,59493.0,0.50429]
[1617340206060,0.2482,59494.0,59493.0,0.53429]
[1617340206281,0.2482,59494.0,59493.0,0.53449]
[1617340207087,0.248,59494.0,59493.0,0.921794]
[1617340207289,0.248,59494.0,59493.0,0.53449]
[1617340207690,0.2478,59494.0,59493.0,0.53449]
[1617340207889,0.2478,59494.0,59493.0,0.75949]
[1617340208498,0.2478,59494.0,59493.0,0.53449]
[1617340208692,0.2478,59494.0,59493.0,0.921794]
[1617340208896,0.2478,59494.0,59493.0,0.53449]
[1617340209093,0.2476,59494.0,59493.0,0.53449]
[1617340209938,0.1992,59494.0,59493.0,0.53449]
[1617340210150,0.1992,59494.0,59493.0,4.311794]
[1617340210339,0.1992,59494.0,59493.0,4.698464]
[1617340210542,0.199,59494.0,59493.0,4.311794]
[1617340210738,0.199,59494.0,59493.0,1.181794]
[1617340211339,0.199,59494.0,59493.0,0.921794]
[1617340211741,0.1988,59494.0,59493.0,4.051794]
[1617340211941,0.1988,59494.0,59493.0,1.308464]
[1617340212136,0.1988,59494.0,59493.0,0.921794]
[1617340212539,0.1988,59494.0,59493.0,1.066794]
[1617340213541,0.1988,59494.0,59493.0,0.921794]
[1617340213743,0.1988,59494.0,59493.0,0.921994]
[1617340215163,0.1988,59494.0,59493.0,3.041994]
[1617340215363,0.1988,59494.0,59493.0,1.481994]
[1617340216365,0.1988,59494.0,59493.0,0.921994]
[1617340219590,0.1988,59494.0,59493.0,0.53469]
[1617340219821,1.006104,59494.0,59493.0,0.50499]
[1617340220014,0.5338,59494.0,59493.0,0.50499]
[1617340220216,0.2488,59494.0,59493.0,0.892294]
[1617340221821,0.2488,59494.0,59493.0,0.89978734]
[1617340223234,0.2438,59494.0,59493.0,2.04978734]
[1617340223436,0.2438,59494.0,59493.0,0.89978734]
[1617340226267,0.1988,59494.0,59493.0,0.89978734]
[1617340227465,0.2438,59494.0,59493.0,0.89978734]
[1617340231325,0.2388,59494.0,59493.0,3.84978734]
[1617340231527,0.2388,59494.0,59493.0,4.37978734]
[1617340231722,0.2388,59494.0,59493.0,1.52978734]
[1617340231924,0.2388,59494.0,59493.0,1.42978734]
[1617340234549,0.2388,59494.0,59493.0,1.52978734]
[1617340234755,0.27802176,59494.0,59493.0,1.52978734]
[1617340234946,0.27802176,59494.0,59493.0,0.99978734]
[1617340235577,0.27802176,59494.0,59493.0,0.89978734]
[1617340236453,0.27802176,59494.0,59493.0,0.86978734]
[1617340236654,0.2388,59494.0,59493.0,0.86978734]
[1617340236853,0.27802781,59494.0,59493.0,0.86978734]
[1617340237452,0.27802781,59494.0,59493.0,0.89978734]
[1617340237453,0.2388,59494.0,59493.0,0.89978734]
[1617340238514,0.2388,59494.0,59493.0,1.23478734]
[1617340238719,0.1,59507.0,59495.0,3.13]
[1617340238922,0.1,59507.0,59506.0,1.44716112]
[1617340239124,0.1,59507.0,59506.0,0.14716112]
[1617340239325,0.1,59507.0,59506.0,0.62195112]
[1617340239522,0.13923916,59507.0,59506.0,0.47479]
[1617340239719,0.1,59507.0,59506.0,0.47479]
[1617340239921,0.6864,59507.0,59506.0,0.47479]
[1617340240125,1.410295,59507.0,59506.0,0.47479]
[1617340240313,1.600295,59507.0,59506.0,0.47479]
[1617340240517,1.68860076,59507.0,59506.0,0.47479]
[1617340240748,1.73860076,59507.0,59506.0,0.47479]
[1617340241150,1.98860076,59507.0,59506.0,0.47479]
[1617340241349,1.73860076,59507.0,59506.0,0.47479]
[1617340241548,1.98860076,59507.0,59506.0,0.47479]
[1617340242753,4.01860076,59507.0,59506.0,0.47479]
[1617340242957,1.98860076,59507.0,59506.0,0.47479]
[1617340243152,2.04546076,59507.0,59506.0,0.47479]
[1617340243552,2.08046076,59507.0,59506.0,0.47479]
[1617340243954,3.0324045,59507.0,59506.0,0.47479]
[1617340244152,2.8424045,59507.0,59506.0,0.47479]
[1617340246372,1.89046076,59507.0,59506.0,0.47479]
[1617340246568,1.53360076,59507.0,59506.0,0.47479]
[1617340246972,1.81360076,59507.0,59506.0,0.47479]
[1617340247569,1.53360076,59507.0,59506.0,0.47479]
[1617340247771,1.58360076,59507.0,59506.0,0.4822817]
[1617340247971,1.158845,59507.0,59506.0,0.4822817]
[1617340249624,1.411178,59507.0,59506.0,0.4822817]
[1617340250025,1.621178,59507.0,59506.0,0.4822817]
[1617340251518,2.02112174,59507.0,59506.0,0.4822817]
[1617340252116,2.27112174,59507.0,59506.0,0.4822817]
[1617340252521,2.02112174,59507.0,59506.0,0.4822817]
[1617340252722,2.27112174,59507.0,59506.0,0.4822817]
[1617340252927,2.02112174,59507.0,59506.0,0.4822817]
[1617340253523,2.27112174,59507.0,59506.0,0.4822817]
[1617340253972,1.871178,59507.0,59506.0,0.4822817]
[1617340254168,1.621178,59507.0,59506.0,0.4822817]
[1617340254375,1.318845,59507.0,59506.0,0.4822817]
[1617340255175,0.9314,59507.0,59506.0,0.4822817]
[1617340255780,1.318845,59507.0,59506.0,0.4822817]
[1617340255972,1.308845,59507.0,59506.0,0.4822817]
[1617340257175,0.9214,59507.0,59506.0,0.4822817]
[1617340257378,0.7114,59507.0,59506.0,0.7345587]
[1617340258181,0.7614,59507.0,59506.0,0.4822817]
[1617340258385,0.82014072,59507.0,59506.0,0.4822817]
[1617340258582,0.23374072,59507.0,59506.0,0.4822817]
[1617340259609,2.41494374,59507.0,59506.0,0.4822817]
[1617340259807,2.762445,59507.0,59506.0,0.4822817]
[1617340260006,3.55769241,59507.0,59506.0,0.4822817]
[1617340260805,1.57010567,59507.0,59506.0,0.4822817]
[1617340261011,1.31774867,59507.0,59506.0,0.4822817]
[1617340261205,0.619465,59507.0,59506.0,0.4822817]
[1617340261404,0.562445,59507.0,59506.0,0.4822817]
[1617340262625,0.720445,59507.0,59506.0,0.4822817]
[1617340262828,0.562445,59507.0,59506.0,0.4822817]
[1617340263829,0.62125061,59507.0,59506.0,0.4822817]
[1617340264456,1.45125061,59507.0,59506.0,0.4822817]
[1617340264658,0.562445,59507.0,59506.0,0.4822817]
[1617340266545,0.512445,59507.0,59506.0,0.4822817]
[1617340266990,0.57122,59507.0,59506.0,0.4822817]
[1617340268389,0.62122,59507.0,59506.0,0.7345667]
[1617340268588,0.175,59507.0,59506.0,0.7345667]
[1617340268792,0.175,59507.0,59506.0,0.4822817]
[1617340268793,0.562445,59507.0,59506.0,0.4822817]
[1617340269188,0.62118592,59507.0,59506.0,0.4822817]
[1617340269608,0.562445,59507.0,59506.0,0.4822817]
[1617340270409,0.62115775,59507.0,59506.0,0.4822817]
[1617340272833,0.562445,59507.0,59506.0,0.4822817]
[1617340273233,0.62114624,59507.0,59506.0,0.4822817]
[1617340273431,0.562445,59507.0,59506.0,0.4822817]
[1617340273832,0.57114717,59507.0,59506.0,0.4822817]
[1617340275056,0.91408874,59507.0,59506.0,0.4689817]
[1617340275256,0.684145,59507.0,59506.0,0.4689817]
[1617340275760,0.679145,59507.0,59506.0,0.4689817]
[1617340276357,1.319145,59507.0,59506.0,0.4689817]
[1617340276558,1.364145,59507.0,59506.0,0.4689817]
[1617340277361,0.724145,59507.0,59506.0,0.4689817]
[1617340277588,0.679145,59507.0,59506.0,0.4689817]
[1617340277788,0.56787103,59507.0,59506.0,0.4689817]
[1617340278180,0.18042603,59507.0,59506.0,0.4689817]
[1617340278581,0.1217,59507.0,59506.0,0.4989817]
[1617340279179,0.1717,59507.0,59506.0,0.4989817]
[1617340279384,0.23041109,59507.0,59506.0,0.4989817]
[1617340279785,0.1717,59507.0,59506.0,0.4989817]
[1617340280404,0.1217,59507.0,59506.0,0.4989817]
[1617340281006,0.1717,59507.0,59506.0,0.4989817]
[1617340282306,0.1217,59507.0,59506.0,0.4989817]
[1617340282937,0.1217,59507.0,59506.0,0.8861647]
[1617340283734,0.1217,59507.0,59506.0,0.8811647]
[1617340284734,0.1217,59507.0,59506.0,0.4939817]
[1617340285354,0.1717,59507.0,59506.0,0.4939817]
[1617340286157,0.2108337,59507.0,59506.0,0.4939817]
[1617340286756,0.1717,59507.0,59506.0,0.4939817]
[1617340287555,0.1217,59507.0,59506.0,0.4939817]
[1617340288190,0.1217,59507.0,59506.0,2.1811647]
[1617340288398,0.1217,59507.0,59506.0,2.68977083]
[1617340288602,0.1217,59507.0,59506.0,2.92977083]
[1617340288791,0.1217,59507.0,59506.0,2.68977083]
[1617340290191,0.1217,59507.0,59506.0,1.38977083]
[1617340290819,0.1217,59507.0,59506.0,0.99477083]
[1617340291024,0.1217,59507.0,59506.0,0.60758783]
[1617340291025,0.1717,59507.0,59506.0,0.60758783]
[1617340291223,0.1717,59507.0,59506.0,0.57758783]
[1617340291419,0.1717,59507.0,59506.0,0.4639817]
[1617340292018,0.21082694,59507.0,59506.0,0.4639817]
[1617340292419,0.21082694,59507.0,59506.0,0.8511647]
[1617340292823,0.1217,59507.0,59506.0,0.8511647]
[1617340293443,0.1217,59507.0,59506.0,0.4639817]
[1617340294044,0.1217,59507.0,59506.0,0.8511647]
[1617340294653,0.1717,59507.0,59506.0,0.8511647]
[1617340296059,0.1717,59507.0,59506.0,0.4639817]
[1617340296726,0.1717,59507.0,59506.0,0.8811647]
[1617340297927,0.1717,59507.0,59506.0,0.87963072]
[1617340299731,0.1667,59507.0,59506.0,0.87963072]
[1617340299928,0.1667,59507.0,59506.0,1.04463072]
[1617340300130,0.1667,59507.0,59506.0,0.62744772]
[1617340300334,0.16963351,59507.0,59506.0,0.46244772]
[1617340300537,0.1667,59507.0,59506.0,0.46244772]
[1617340301139,2.2967,59507.0,59506.0,0.46244772]
[1617340301334,2.60067,59507.0,59506.0,0.46244772]
[1617340301531,4.373115,59507.0,59506.0,0.46244772]
[1617340301734,3.77805874,59507.0,59506.0,0.46244772]
[1617340303128,4.77305874,59507.0,59506.0,0.46244772]
[1617340303334,4.92705874,59507.0,59506.0,0.46244772]
[1617340303534,5.17705874,59507.0,59506.0,0.46244772]
[1617340303739,5.26705874,59507.0,59506.0,0.46244772]
[1617340304341,4.18205874,59507.0,59506.0,0.46244772]
[1617340304538,3.77805874,59507.0,59506.0,0.46244772]
[1617340306361,5.02305874,59507.0,59506.0,0.46244772]
[1617340306559,5.26905874,59507.0,59506.0,0.46244772]
[1617340307960,6.56905874,59507.0,59506.0,0.46244772]
[1617340310193,6.62759088,59507.0,59506.0,0.46244772]
[1617340311196,6.56905874,59507.0,59506.0,0.46244772]
[1617340311462,6.80905874,59507.0,59506.0,0.46244772]
[1617340312262,6.82660301,59507.0,59506.0,0.46244772]
[1617340312860,6.88511841,59507.0,59506.0,0.46244772]
[1617340313467,6.88511841,59507.0,59506.0,0.42885261]
[1617340313665,6.82660301,59507.0,59506.0,0.42885261]
[1617340313866,6.52660301,59507.0,59506.0,0.42885261]
[1617340314065,6.28660301,59507.0,59506.0,0.42885261]